Cogmind - Beta 12 @@@ ROGUE MODE // 2023.06.09 @ 18:12:07 Player: HexanyIves Result: Destroyed by P-70 Sage with High-powered Shock Rifle Performance ------------- Evolutions (6) 3000 Regions Visited (10) 2000 Robots Destroyed (48) 240 Value Destroyed (1703) 1703 Prototype IDs (4) 80 Alien Tech Used (0) 0 Bonus (0) 0 TOTAL SCORE: 7023 Bonus ------- None Cogmind --------- Core Integrity 0/1150 Matter 300/300 Energy 294/300 System Corruption 21% Temperature Cool (0) Movement Core (150) Ox2 Location -4/Upper Caves Parts ------- > --- POWER (2) -------- (None) > --- PROPULSION (6) --- (None) > --- UTILITY (9) ------ Compact Battery Improved Terrain Scan Processor Advanced Terrain Scan Processor Advanced Terrain Scan Processor Improved Melee Analysis Suite Advanced Melee Analysis Suite Hacking Suite > --- WEAPON (2) ------- Makeshift Hammer Chainsword > --- INVENTORY (5) ---- Improved Fusion Compressor Compact Battery (200) Mini Grenade Launcher Hammer Peak State ------------ > --- POWER ------------ Improved Fusion Compressor > --- PROPULSION ------- Flexi-carbon Leg Antigrav System Antigrav System Nuclear Pulse Array > --- UTILITY ---------- Advanced Heat Sink Improved Signal Interpreter Improved Terrain Scan Processor Advanced Terrain Scan Processor Advanced Terrain Scan Processor Advanced Melee Analysis Suite Improved Weapon Shielding Hacking Suite > --- WEAPON ----------- Great Maul Chainsword > --- INVENTORY -------- Mini Grenade Launcher Hammer Chainsword [Rating: 73] Favorites ----------- Power Light Nuclear Core Engine Light Ion Engine Power Core Light Nuclear Core Reactor Light Antimatter Reactor Propulsion Gravmag System Treads Medium Treads Leg Armored Leg Wheel Wheel Hover Unit Gravmag System Flight Unit VTOL Module Utility Advanced Terrain Scan Processor Device Improved Sensor Array Storage Compact Battery Processor Advanced Terrain Scan Processor Hackware Hacking Suite Protection Improved Weapon Shielding Weapon Great Maul Energy Gun Small Laser Launcher Mini Grenade Launcher Special Weapon Plasma Cutter Impact Weapon Great Maul Slashing Weapon Katana Special Melee Weapon Improved Datajack Build | -11 -10 -9 -8 -7 -6 -6 -6 -5 -4 -4 ------- Run | Jun Mat Mat Mat Fac Fac Low Low Fac Fac Upp Slots Evolved 12 | . . 2 2 2 2 . . 2 2 . Power 1 | . . . . . 1 . . . . . Propulsion 4 | . . 2 . . . . . 1 1 . Utility 7 | . . . 2 2 1 . . 1 1 . Weapon . | . . . . . . . . . . . Parts Attached 111 | 7 1 4 16 17 1 2 . 22 31 10 Power 20 | 1 . 1 2 1 1 . . 3 9 2 Engine 5 | 1 . 1 1 . 1 . . . 1 . Core 11 | . . . 1 1 . . . 3 4 2 Reactor 4 | . . . . . . . . . 4 . Propulsion 37 | 2 . 2 6 3 . . . 9 13 2 Treads 1 | . . . . . . . . . . 1 Leg 2 | . . . . . . . . 1 1 . Wheel 8 | 2 . 1 . 2 . . . 1 2 . Hover 15 | . . . 5 1 . . . 3 6 . Flight 11 | . . 1 1 . . . . 4 4 1 Utility 36 | 2 1 . 6 8 . 1 . 9 6 3 Device 15 | 1 . . 3 3 . . . 3 4 1 Storage 3 | 1 1 . . . . . . . . 1 Processor 10 | . . . 1 3 . 1 . 2 2 1 Hackware 1 | . . . 1 . . . . . . . Protection 7 | . . . 1 2 . . . 4 . . Artifact . | . . . . . . . . . . . Weapon 18 | 2 . 1 2 5 . 1 . 1 3 3 Energy Gun 3 | 2 . . . 1 . . . . . . Energy Cannon . | . . . . . . . . . . . Ballistic Gun . | . . . . . . . . . . . Ballistic Cannon . | . . . . . . . . . . . Launcher 2 | . . 1 1 . . . . . . . Special Weapon 1 | . . . 1 . . . . . . . Impact Weapon 6 | . . . . 2 . . . 1 1 2 Slashing Weapon 4 | . . . . 1 . . . . 2 1 Piercing Weapon . | . . . . . . . . . . . Special Melee Weapon 2 | . . . . 1 . 1 . . . . Unidentified Prototypes 3 | . . 1 1 . . . . 1 . . Corrupted Parts 2 | . . . . 1 . . . . 1 . System Corruption 4 | . . . . 1 . . . . 3 . Parts Lost 64 | . . 10 4 9 1 . 2 9 20 9 Power 13 | . . 2 1 1 1 . . 2 4 2 Propulsion 27 | . . 4 2 5 . . 1 4 8 3 Utility 17 | . . 1 . 3 . . 1 3 6 3 Weapon 7 | . . 3 1 . . . . . 2 1 Highest Loss Streak 8 | . . 7 4 8 1 . 2 4 6 5 To Critical Strikes . | . . . . . . . . . . . Average Slot Usage (%) 73 | . 100 77 79 79 49 54 58 72 73 67 Engine 1 | . 14 10 . 2 2 . . . . . Core 3 | . . . 7 3 . . . 4 3 4 Leg 1 | . . . . . . . . 3 1 . Wheel 3 | . 28 27 . 1 6 6 5 1 1 . Hover 6 | . . . 26 15 . . . 1 5 . Flight 3 | . . . . . . . . 7 3 4 Device 8 | . 14 9 15 20 . . . 4 1 4 Storage 1 | . 14 10 . . . . . . . 3 Processor 18 | . . . 2 14 20 21 25 23 24 26 Hackware 5 | . . . 8 7 6 6 6 5 5 5 Protection 5 | . . . 6 1 6 6 6 4 12 4 Energy Gun 1 | . 28 16 . . . . . . . . Launcher 1 | . . 1 7 2 . . . . . . Impact Weapon 3 | . . . . 3 . . . 4 5 3 Slashing Weapon 4 | . . . . 4 6 6 6 5 4 5 Naked Turns 10 | . . 10 . . . . . . . . Heaviest Build 39 | 12 17 19 13 18 11 7 7 22 39 23 Greatest Support 38 | 26 26 36 33 38 28 28 28 33 22 28 Greatest Overweight (x) 5 | . . . 2 1 . . 2 2 5 4 Average Overweight (x) . | . . . . . . . . . 1 . Largest Inventory Capacity 10 | 8 10 10 5 5 5 5 5 5 5 5 Average Capacity 5 | 6 9 9 5 5 5 5 5 5 5 5 Most Carried 10 | 4 7 10 5 5 3 4 4 5 5 5 Average Carried 4 | 2 5 8 4 4 3 2 3 3 4 4 Final Capacity 10 | 8 10 5 5 5 5 5 5 5 5 5 Final Carried 7 | 4 7 5 3 4 3 3 4 4 3 4 Class Distribution -------------------- 69% | Mutant 17% | Scavenger-Mutant 6% | Assassin 4% | Scout Dominant Class ---------------- Mutant | -10/Materials Mutant | -9/Materials Mutant | -8/Materials Assassin | -7/Factory Mutant | -6/Factory Mutant | -6/Lower Caves Mutant | -6/Lower Caves Mutant | -5/Factory Mutant | -4/Factory Scavenger-Mutant | -4/Upper Caves Resources | -11 -10 -9 -8 -7 -6 -6 -6 -5 -4 -4 ----------- Run | Jun Mat Mat Mat Fac Fac Low Low Fac Fac Upp Matter Collected 1338 | 196 . 128 . 236 76 20 . 189 254 239 Remotely . | . . . . . . . . . . . Salvage Created 2109 | 21 . 324 100 236 . . . 308 586 534 Parts 100 | 4 . 22 14 12 . . . 16 14 18 Haulers Intercepted . | . . . . . . . . . . . Recyclers Shooed . | . . . . . . . . . . . Parts Field Recycled . | . . . . . . . . . . . Retrieved Matter . | . . . . . . . . . . . Parts Self-Destructed 14 | . . . . . . . . . . 14 Prevented . | . . . . . . . . . . . Kills | -11 -10 -9 -8 -7 -6 -6 -6 -5 -4 -4 ------- Run | Jun Mat Mat Mat Fac Fac Low Low Fac Fac Upp Combat Hostiles Destroyed 40 | . . 10 6 4 . . . 7 7 6 Melee 19 | . . . . 3 . . . 6 4 6 Guns 6 | . . 6 . . . . . . . . AOE 10 | . . 4 6 . . . . . . . Classes Destroyed 11 | 1 . 4 1 2 . . . . 3 . Worker 4 | . . . 1 1 . . . 1 1 . Builder 1 | . . . . 1 . . . . . . Tunneler 1 | 1 . . . . . . . . . . Recycler 1 | . . . . . . . . . 1 . Watcher 1 | . . . . . . . . . 1 . Swarmer 17 | . . 5 4 . . . . 3 . 5 Grunt 9 | . . 2 2 1 . . . 2 2 . Brawler 1 | . . 1 . . . . . . . . Sentry 3 | . . 2 . 1 . . . . . . Hunter 2 | . . . . . . . . . 2 . Programmer 8 | . . . . 2 . . . 2 3 1 Best Kill Streak 5 | 1 . 5 4 2 . . . 3 2 5 Combat Bots Only 5 | . . 5 3 1 . . . 3 2 5 Max Kills in Single Turn 3 | 1 . 3 2 1 . . . 1 1 1 Gunslinging . | . . . . . . . . . . . Exploded 3 | . . 3 2 . . . . . . . Melee 1 | . . . . 1 . . . 1 1 1 Uniques/NPCs Destroyed . | . . . . . . . . . . . Combat | -11 -10 -9 -8 -7 -6 -6 -6 -5 -4 -4 -------- Run | Jun Mat Mat Mat Fac Fac Low Low Fac Fac Upp Damage Taken 6865 | . 1 805 690 693 76 . 168 1601 1983 848 Core 2363 | . . 346 178 177 . . 55 440 791 376 Absorbed by Shields . | . . . . . . . . . . . Redirected to Shielding 301 | . . . . . . . . 39 186 76 Regen/Repaired (Parts) 178 | . . . . . . . . 178 . . Core Remaining (%) 71 | 100 100 13 67 74 . . 93 56 . . Volleys Fired 46 | 1 . 28 17 . . . . . . . Largest 2 | 2 . 2 2 . . . . . . . Hottest 80 | 80 . 80 50 . . . . . . . Shots Fired 54 | 2 . 35 17 . . . . . . . Gun 31 | 2 . 29 . . . . . . . . Cannon . | . . . . . . . . . . . Launcher 11 | . . 6 5 . . . . . . . Special 12 | . . . 12 . . . . . . . Kinetic . | . . . . . . . . . . . Thermal 38 | 1 . 25 12 . . . . . . . Explosive 5 | . . . 5 . . . . . . . Electromagnetic 11 | 1 . 10 . . . . . . . . Robot Hit Streak 16 | 1 . 16 4 . . . . . . . Robot Miss Streak 2 | 1 . 2 1 . . . . . . . Penetration Max . | . . . . . . . . . . . Secondary Targets . | . . . . . . . . . . . Shots Hit Robots 166 | 1 . 24 5 27 . 5 . 39 44 21 Core Hits 69 | 1 . 17 13 7 . . . 11 11 9 Critical Kills 2 | . . . . . . . . . 2 . Critical Parts Destroyed 4 | . . . . 1 . . . . 3 . Critical Strikes 13 | . . . . 2 . . . 3 6 2 Smash 6 | . . . . 1 . . . . 5 . Sever 7 | . . . . 1 . . . 3 1 2 Melee Attacks 206 | . . . . 32 . 7 . 75 69 23 Impact 46 | . . . . 6 . . . 14 24 2 Slashing 149 | . . . . 20 . 2 . 61 45 21 Piercing . | . . . . . . . . . . . Sneak Attacks 16 | . . . . 7 . 5 . 1 3 . Combat Hostiles 1 | . . . . 1 . . . . . . Follow-up Attacks 19 | . . . . 4 . . . 6 6 3 Damage Inflicted 6287 | 12 3 429 639 827 . . . 1319 2012 1046 Guns 251 | 12 . 239 . . . . . . . . Cannons . | . . . . . . . . . . . Explosions 787 | . . 190 597 . . . . . . . Melee 5204 | . . . . 827 . . . 1319 2012 1046 Ramming 24 | . 3 . 21 . . . . . . . Kinetic . | . . . . . . . . . . . Thermal 284 | 12 . 251 21 . . . . . . . Explosive 597 | . . . 597 . . . . . . . Electromagnetic 178 | . . 178 . . . . . . . . Impact 1556 | . . . . 227 . . . 285 950 94 Slashing 3648 | . . . . 600 . . . 1034 1062 952 Piercing . | . . . . . . . . . . . Highest Corruption 21 | . . . . 6 . . . 6 17 21 Average Corruption 8 | . . . . 2 . . . 5 4 17 Corruption Purged . | . . . . . . . . . . . Corruption Blocked . | . . . . . . . . . . . Effects 73 | . . . . 12 . . . 4 20 37 Message Errors 21 | . . . . 4 . . . . 4 13 Matter Fused 11 | . . . . 1 . . . . 5 5 Heat Flow Errors 13 | . . . . 2 . . . 1 1 9 Energy Discharges 12 | . . . . 4 . . . 1 2 5 Parts Rejected 2 | . . . . 1 . . . . 1 . Parts Fused 1 | . . . . . . . . . . 1 Data Loss (minor) 7 | . . . . . . . . 2 4 1 Data Loss (major) 4 | . . . . . . . . . 3 1 Alerts 2 | . . . . . . . . . . 2 Overload Shots . | . . . . . . . . . . . Overflow Damage 721 | . . 8 53 77 . . . 52 358 173 Projectiles . | . . . . . . . . . . . Explosions 61 | . . 8 53 . . . . . . . Melee 660 | . . . . 77 . . . 52 358 173 Knockbacks 9 | . 1 . . . . . . 1 6 1 Impact 9 | . 1 . . . . . . 1 6 1 Kinetic . | . . . . . . . . . . . Secondary . | . . . . . . . . . . . Self-Inflicted Damage 103 | . 1 . 102 . . . . . . . Shots 2 | . . . 2 . . . . . . . Rammed 6 | . 1 1 4 . . . . . . . Targets Rammed 6 | . 1 1 4 . . . . . . . Kicked . | . . . . . . . . . . . Crushed . | . . . . . . . . . . . Highest Temperature 215 | 18 . 81 46 149 . . . 155 95 215 Average Temperature 48 | 12 . 25 20 73 . . . 65 62 76 Received Heat Transfer 1287 | . . 264 243 201 36 . . 342 201 . Siege Activations . | . . . . . . . . . . . Robots Corrupted . | . . . . . . . . . . . Combat Hostiles . | . . . . . . . . . . . Parts Fried 6 | . . . . 1 . . . . 5 . Impact Corruptions 15 | . . . . 3 . . . 3 9 . Robots Melted . | . . . . . . . . . . . Combat Hostiles . | . . . . . . . . . . . Parts Melted . | . . . . . . . . . . . Heat Transferred 674 | 25 . 575 74 . . . . . . . Parts Sabotaged . | . . . . . . . . . . . Parts Stolen . | . . . . . . . . . . . Parts Stripped . | . . . . . . . . . . . Power Chain Reactions 1 | . . 1 . . . . . . . . Missiles Intercepted . | . . . . . . . . . . . Alert | -11 -10 -9 -8 -7 -6 -6 -6 -5 -4 -4 ------- Run | Jun Mat Mat Mat Fac Fac Low Low Fac Fac Upp Peak Influence 395 | 5 68 395 327 152 56 . . 123 185 . Initial 160 | . 3 28 160 118 36 . . 4 21 . Average 82 | 2 23 159 223 54 39 . . 43 81 . Maximum Alert Level 1 | . . 1 1 . . . . . 1 . Low Security (%) 90 | 100 100 66 43 100 100 . . 100 99 . Level 1 9 | . . 33 56 . . . . . . . Level 2 . | . . . . . . . . . . . Level 3 . | . . . . . . . . . . . Level 4 . | . . . . . . . . . . . Level 5 . | . . . . . . . . . . . High Security . | . . . . . . . . . . . Max Security . | . . . . . . . . . . . Squads Dispatched 12 | . 1 3 2 1 . . . 3 2 . Investigation 5 | . 1 2 1 . . . . . 1 . Extermination 3 | . . . . 1 . . . 1 1 . Reinforcement 4 | . . 1 1 . . . . 2 . . Assault . | . . . . . . . . . . . Garrison . | . . . . . . . . . . . Intercept . | . . . . . . . . . . . Searches Triggered . | . . . . . . . . . . . Construction Impeded 1 | . . . 1 . . . . . . . Haulers Reinforced . | . . . . . . . . . . . Active Scanning Responses . | . . . . . . . . . . . Cargo Convoy Interrupts 1 | . . . . . . . . 1 . . Stealth | -11 -10 -9 -8 -7 -6 -6 -6 -5 -4 -4 --------- Run | Jun Mat Mat Mat Fac Fac Low Low Fac Fac Upp Distress Signals 3 | . . 1 1 . . . . 1 . . Communications Jammed . | . . . . . . . . . . . Distress Signals . | . . . . . . . . . . . Times Spotted 119 | . 6 23 23 12 4 . 2 23 19 7 Peak Tracking Total 12 | . 5 11 12 7 4 . 2 6 5 5 Tactical Retreats 20 | . 1 4 4 3 2 . . 6 . . Traps | -11 -10 -9 -8 -7 -6 -6 -6 -5 -4 -4 ------- Run | Jun Mat Mat Mat Fac Fac Low Low Fac Fac Upp Traps Triggered 8 | . 1 . 1 2 . . . . 4 . Indirectly . | . . . . . . . . . . . Trap Hack Attempts . | . . . . . . . . . . . Triggered . | . . . . . . . . . . . Disarmed . | . . . . . . . . . . . Reprogrammed . | . . . . . . . . . . . Reused . | . . . . . . . . . . . Traps Extracted . | . . . . . . . . . . . Installed . | . . . . . . . . . . . Triggered 2 | . . . . . . 1 . 1 . . Machines | -11 -10 -9 -8 -7 -6 -6 -6 -5 -4 -4 ---------- Run | Jun Mat Mat Mat Fac Fac Low Low Fac Fac Upp Machines Disabled 1 | . . 1 . . . . . . . . Max in Single Turn 1 | . . 1 . . . . . . . . Garrison Access 2 | . . . . . . . . 1 1 . Machines Repaired . | . . . . . . . . . . . Machines Sabotaged . | . . . . . . . . . . . Overloaded Fab Kills . | . . . . . . . . . . . Hacking | -11 -10 -9 -8 -7 -6 -6 -6 -5 -4 -4 --------- Run | Jun Mat Mat Mat Fac Fac Low Low Fac Fac Upp Machines Accessed 14 | . 1 2 2 5 . . . 2 2 . Terminals 6 | . 1 1 1 2 . . . . 1 . Fabricators 1 | . . . . 1 . . . . . . Repair Stations 2 | . . . . 1 . . . 1 . . Recycling Units 1 | . . . 1 . . . . . . . Scanalyzers 2 | . . 1 . 1 . . . . . . Garrison Access 2 | . . . . . . . . 1 1 . Total Hacks 28 | . 2 7 3 9 . . . 4 3 . Successful 12 | . 1 1 2 3 . . . 3 2 . Failed 16 | . 1 6 1 6 . . . 1 1 . Catastrophic 2 | . . 1 . 1 . . . . . . Database Lockouts . | . . . . . . . . . . . Manual . | . . . . . . . . . . . Terminals 13 | . 2 4 2 3 . . . . 2 . Fabricators 2 | . . . . 2 . . . . . . Repair Stations 5 | . . . . 2 . . . 3 . . Recycling Units 1 | . . . 1 . . . . . . . Scanalyzers 5 | . . 3 . 2 . . . . . . Garrison Access 2 | . . . . . . . . 1 1 . Terminal Hacks 5 | . 1 . 1 2 . . . . 1 . Record 1 | . . . . 1 . . . . . . Part Schematic 1 | . . . . 1 . . . . . . Branch Access Points 1 | . . . . . . . . . 1 . Recall Investigation 1 | . . . 1 . . . . . . . Zone Layout 1 | . 1 . . . . . . . . . Fabricator Hacks 1 | . . . . 1 . . . . . . Build 1 | . . . . 1 . . . . . . Repair Station Hacks 2 | . . . . . . . . 2 . . Scan Component 1 | . . . . . . . . 1 . . Repair 1 | . . . . . . . . 1 . . Recycling Unit Hacks 1 | . . . 1 . . . . . . . Report Inventory 1 | . . . 1 . . . . . . . Scanalyzer 1 | . . 1 . . . . . . . . Insert Component 1 | . . 1 . . . . . . . . Garrison Access Hacks 2 | . . . . . . . . 1 1 . Seal Access 2 | . . . . . . . . 1 1 . Unauthorized Hacks . | . . . . . . . . . . . Terminals . | . . . . . . . . . . . Fabricators . | . . . . . . . . . . . Repair Stations . | . . . . . . . . . . . Recycling Units . | . . . . . . . . . . . Scanalyzers . | . . . . . . . . . . . Garrison Access . | . . . . . . . . . . . Data Cores Recovered . | . . . . . . . . . . . Used . | . . . . . . . . . . . Hacking Detections 7 | . . 2 . 3 . . . 1 1 . Full Trace Events 2 | . . 1 . . . . . . 1 . Feedback Events . | . . . . . . . . . . . Feedback Blocked . | . . . . . . . . . . . Robot Schematics Acquired . | . . . . . . . . . . . Robots Built 1 | . . . . 1 . . . . . . Authchips . | . . . . . . . . . . . Time 81 | . . . . 81 . . . . . . Total Robot Build Rating 1 | . . . . 1 . . . . . . Part Schematics Acquired 1 | . . . . 1 . . . . . . Parts Built . | . . . . . . . . . . . Authchips . | . . . . . . . . . . . Time . | . . . . . . . . . . . Total Part Build Rating . | . . . . . . . . . . . Parts Repaired 1 | . . . . . . . . 1 . . Time 22 | . . . . . . . . 22 . . Parts Recycled . | . . . . . . . . . . . Recycled Matter . | . . . . . . . . . . . Retrieved Matter . | . . . . . . . . . . . Retrieved Components . | . . . . . . . . . . . Parts Scanalyzed . | . . . . . . . . . . . Part Schematics Acquired . | . . . . . . . . . . . Parts Damaged . | . . . . . . . . . . . Bothacking | -11 -10 -9 -8 -7 -6 -6 -6 -5 -4 -4 ------------ Run | Jun Mat Mat Mat Fac Fac Low Low Fac Fac Upp Used RIF Installer . | . . . . . . . . . . . Robots Hacked 6 | . . . . 3 . 3 . . . . Non-combat 5 | . . . . 2 . 3 . . . . Combat 1 | . . . . 1 . . . . . . Robot Hacks Applied 8 | . . . . 4 . 4 . . . . parse_system 7 | . . . . 3 . 4 . . . . find_recycling 1 | . . . . 1 . . . . . . Relay Couplers Released . | . . . . . . . . . . . Fabnet Peak Effective % . | . . . . . . . . . . . Robots Rewired . | . . . . . . . . . . . Allies Hacked . | . . . . . . . . . . . Hacks Repelled . | . . . . . . . . . . . Allies | -11 -10 -9 -8 -7 -6 -6 -6 -5 -4 -4 -------- Run | Jun Mat Mat Mat Fac Fac Low Low Fac Fac Upp Total Allies 1 | . . . . 1 . . . . . . Largest Group 1 | . . . . 1 . . . . . . Highest-Rated Group 8 | . . . . 8 . . . . . . Highest-Rated Ally 8 | . . . . 8 . . . . . . Total Orders 1 | . . . . 1 . . . . . . COLLECT 1 | . . . . 1 . . . . . . Ally Attacks . | . . . . . . . . . . . Total Damage . | . . . . . . . . . . . Kills . | . . . . . . . . . . . Allies Corrupted . | . . . . . . . . . . . Allies Melted . | . . . . . . . . . . . Intel | -11 -10 -9 -8 -7 -6 -6 -6 -5 -4 -4 ------- Run | Jun Mat Mat Mat Fac Fac Low Low Fac Fac Upp Robot Analysis Total . | . . . . . . . . . . . Derelict Logs Recovered 2 | . . . . . . . . . . 2 Drone Launches . | . . . . . . . . . . . Drone Recoveries . | . . . . . . . . . . . Decoded 0b10 Intel 117 | . . . . . . . . 76 41 . Items 117 | . . . . . . . . 76 41 . Exploration | -11 -10 -9 -8 -7 -6 -6 -6 -5 -4 -4 ------------- Run | Jun Mat Mat Mat Fac Fac Low Low Fac Fac Upp Turns Passed 5932 | 72 144 307 560 1032 138 235 184 1340 1029 891 Spaces Moved 4070 | 61 153 158 478 897 138 220 176 673 553 563 Core 276 | 8 . 26 133 . . . 16 70 3 20 Treads 354 | . . . . . . . . . . 354 Legs 218 | . . . . . . . . 170 48 . Wheels 1223 | 53 153 132 . 112 138 220 160 124 131 . Hover 1637 | . . . 345 785 . . . 167 340 . Flight 362 | . . . . . . . . 142 31 189 Fastest Speed 39 | 50 90 50 48 52 100 100 100 39 40 40 Average Speed 97 | 84 90 79 57 71 100 100 104 103 123 144 Slowest Speed 315 | 90 90 86 150 116 100 100 150 190 315 250 Overloaded Moves . | . . . . . . . . . . . Propulsion Burnouts . | . . . . . . . . . . . Robots Hopped . | . . . . . . . . . . . Cave-ins Triggered 2 | . . . . . . . . . 2 . Exploration Rate (%) 28 | 4 41 24 39 27 5 45 16 18 18 75 Regions Visited 10 Branch Regions 3 Pre-discovered Areas . | . . . . . . . . . . . Known Exits Taken 2 | . . . . . . . . 1 1 . Unknown Exits Taken 8 | 1 1 1 1 1 1 1 1 . . . Scrap Searched 5 | . . . . . . 2 1 . . 2 Spaces Dug 36 | . . . 7 . . 2 . 16 11 . Terrain Destroyed 82 | . . . 53 . . 2 . 16 11 . Melee 29 | . . . . . . 2 . 16 11 . Projectile . | . . . . . . . . . . . AOE 53 | . . . 53 . . . . . . . Terrain Rammed . | . . . . . . . . . . . Walls Destroyed . | . . . . . . . . . . . Machines Disabled . | . . . . . . . . . . . Actions | -11 -10 -9 -8 -7 -6 -6 -6 -5 -4 -4 --------- Run | Jun Mat Mat Mat Fac Fac Low Low Fac Fac Upp Total 5707 | 79 159 305 734 1255 138 232 176 1212 802 615 Wait 1146 | . . 101 197 287 . 2 . 428 121 10 Move 4061 | 60 153 157 477 896 137 219 175 672 552 563 Hop . | . . . . . . . . . . . Pick Up 126 | 11 4 7 17 18 . 2 1 22 34 10 Fast Attach . | . . . . . . . . . . . Attach 95 | 7 . 5 15 8 1 2 . 19 29 9 Detach 3 | . . . 1 . . . . 1 . 1 Swap 17 | . 1 . 1 9 . . . 3 2 1 Drop 31 | . 1 6 5 9 . . . 3 6 1 Fire 46 | 1 . 28 17 . . . . . . . Melee 177 | . . . . 28 . 7 . 64 58 20 Ram 5 | . . 1 4 . . . . . . . Kick . | . . . . . . . . . . . Crush . | . . . . . . . . . . . Escape Stasis . | . . . . . . . . . . . Rewire . | . . . . . . . . . . . Trap . | . . . . . . . . . . . Miscellaneous . | . . . . . . . . . . . Route ------- -11/Junkyard -10/Materials -9/Materials -8/Materials -7/Factory -6/Factory -6/Lower Caves -6/Lower Caves -5/Factory -4/Factory (discovered 2 exits: *Upp x2) -4/Upper Caves History --------- Turn | Location | Event 3 | -11/Junkyard | Discovered new exit (range 16) 73 | -11/Junkyard | Entered Materials 213 | -10/Materials | Discovered new exit (range 6) 217 | -10/Materials | Entered another Materials area 217 | -9/Materials | Evolved 2 slots: Propulsion x2 309 | -9/Materials | Build established: Mutant 503 | -9/Materials | Core integrity fell below 50% 512 | -9/Materials | Core integrity fell below 20% 519 | -9/Materials | Discovered new exit (range 11) 524 | -9/Materials | Entered another Materials area 524 | -8/Materials | Evolved 2 slots: Utility x2 545 | -8/Materials | Lost 7 parts (2p3n1u1w) 1081 | -8/Materials | Discovered new exit (range 8) 1084 | -8/Materials | Entered Factory 1084 | -7/Factory | Evolved 2 slots: Utility x2 1108 | -7/Factory | Lost 4 parts (1p2n1w) 1296 | -7/Factory | Fabricated R-06 Scavenger (x1) 1742 | -7/Factory | Build established: Assassin 2044 | -7/Factory | Lost 8 parts (1p4n3u) 2105 | -7/Factory | Discovered new exit (range 12) 2116 | -7/Factory | Entered another Factory area 2116 | -6/Factory | Evolved 2 slots: Power x1, Utility x1 2213 | -6/Factory | Build established: Mutant 2240 | -6/Factory | Discovered new exit (range 15) 2254 | -6/Factory | Entered Lower Caves 2447 | -6/Lower Caves | Discovered new exit (range 3) 2489 | -6/Lower Caves | Entered another Lower Caves area 2543 | -6/Lower Caves | Discovered new exit (range 6) 2673 | -6/Lower Caves | Entered Factory 2673 | -5/Factory | Evolved 2 slots: Propulsion x1, Utility x1 3160 | -5/Factory | Repaired Lyr. Light Armor Plating 3185 | -5/Factory | Spotted B-75 Beast 3521 | -5/Factory | Cargo convoy interrupted 3581 | -5/Factory | Build established: Scavenger-Mutant 3619 | -5/Factory | Lost 4 parts (1p1n2u) 3922 | -5/Factory | Lost 3 parts (1p1n1u) 4001 | -5/Factory | Discovered new exit (range 14) 4010 | -5/Factory | Identified exit to Factory 4013 | -5/Factory | Entered another Factory area 4013 | -4/Factory | Evolved 2 slots: Propulsion x1, Utility x1 4108 | -4/Factory | Lost 5 parts (3n1u1w) 4309 | -4/Factory | Build established: Mutant 4687 | -4/Factory | Lost 6 parts (2p3n1u) 4752 | -4/Factory | Core integrity fell below 50% 4802 | -4/Factory | Identified exit to Upper Caves 4912 | -4/Factory | Crushed by falling debris 4912 | -4/Factory | System corruption reached 10% 4920 | -4/Factory | Crushed by falling debris 4951 | -4/Factory | Lost 4 parts (1p3u) 5042 | -4/Factory | Entered Upper Caves 5065 | -4/Upper Caves | Lost 4 parts (2n1u1w) 5197 | -4/Upper Caves | Learned Research security intel 5288 | -4/Upper Caves | Core integrity fell below 20% 5312 | -4/Upper Caves | Lost 4 parts (1p1n1u1w) 5645 | -4/Upper Caves | Build established: Scavenger-Mutant 5706 | -4/Upper Caves | Learned location of 1 exit from Research 5933 | -4/Upper Caves | Destroyed by P-70 Sage with High-powered Shock Rifle Last Messages --------------- 05802_ P TLGVU ZJOI:9FQDG=E2E 05825_ System corrupted: Heat flow error (+230). 05862_ 8AA4 AYLZ UE&YG1L%IH/JZG5TZHBMQRO 05882_ System corrupted: Heat flow error (+116). 05897_ QZAGPJBTZ2M3 ISC4ILQ 05907_ Lgt. Nuclear Core destroyed. 05909_ P-70 Sage resets P-70 Sage, system corruption cleaned. 05909_ Mak. Hammer follow-up attack on P-70 Sage. 05911_ Med. Treads destroyed. 05914_ System corrupted: Heat flow error (+103). 05914_ Adv. Heat Sink destroyed. 05916_ Destroyed Mic. Fission Core. 05918_ VTOL Module destroyed. 05921_ P-70 Sage destroyed. 05924_ Imp. Weapon Shielding destroyed. 05925_ P-70 Sage Antigrav System severed. 05929_ Hpw. Shock Rifle fries itself beyond repair. 05930_ Antigrav System fries itself beyond repair. 05930_ P-70 Sage Tesla Rifle severed. 05933_ Destroyed Antigrav System. Map ----- +----------------------------------------------------+ | "" """" #### ##???## # ##? | | "" """" ##??# ## | | "" """" #??# # | | #### # #???# | | "" """" #??# ## ##??# ## | | "" """" #??# ###### #### ## ### ## | | "" """" #??# #????# #?## ### | | "" """" #??# #???# #??## ### | | "" """" #??# ### ##???# #?? | | "" """" #??####### ##?# ### ##????# ##?? | | #????????#####??# ###?# #????? #??? | | #???????????????###???# #????# #??? | | #?????????????????????####????# ??? | | ## ##?????###?????????????????????## ?? | | ?# ######?????## ##?????????????????????# ## #? | | ?# #????####?## ##???????####?????????# #?# ? | | ?# ##???# ### ####????# #?????????# ??? #? | | ?# ##??# ## #???## ??????????# ???##?? | | ?# #??# ## #????# ??????????? ??? #?? | | ?## #?## ## #?????# #?????????????? #?? | | ?# ### ### #?????# #?????????????? #?? | | ?# ## ##????# #????????????## ##? | | ## #????# #?????#####?# ## | | # #???## ##???## ## # | | ##### ##?## | | [p@ ### | | # ### % % % | | ## #?###### ## ##????? | | ?# #??????########### % ## #?????? | | ?####### #???????????????## #### #?????? | | ???????## #??????????????## %#??# #?????? | | ????????#####??????????????# #?## ##?????? | | ???###????????????????????## ##?# %##?????? | | ??## ##??????????????????## ###??# ##????? | | ??# ##??####????????#### #????## ##???? | | ??# #### ##??????## ## ##????##### ###?? | | ??## % "## ######## ### ##???????## #?? | | ###"%! # ### #????????## #?? | | % ### ## ## ### #????# ##?? | | ###" "#?# ##### ###### #??? | | ??#"" ""#?# ####??## ###? | | ??### ###?###?????# ######### #? | | ????# ???????#### ####???????## ## #? | | ????#####?????## ##?????###??????# #? | | ??????????????# #?????? ####???# ##? | | ??????????????# ## #????## #???# ##?? | | #?????????????# ?## #???## #???## #??? | | ##????????????# ???# #???# #????# ##??? | | ###??? ?????? ????# ##?## ##??## #???? | | #?## ????? ????## ### #??# #???? | +----------------------------------------------------+ Best States ------------- Heat Dissipation 62 Energy Generation 49 Energy Capacity 385 Matter Stores 300 Matter Capacity 300 Sight Range 16 Robot Scan Range 15 Terrain Scan Range 20 Terrain Scan Density 410 ECM Strength 1 Armor Coverage 300 Weapon Shielding 66 Evasion (%) 62 Melee Accuracy 14 Recoil Reduction 1 Offensive Hacking 10 Item Schematics ----------------- Angular Momentum Engine | -7/Factory | Hacked Robot Schematics ------------------ None Fabricated ------------ R-06 Scavenger | x1 | -7/Factory | Preloaded Alien Tech Used ----------------- None Achievements -------------- Decoder Ring My Command Is Your Wish Omniscient Cartographer Part-time Excavator Challenges ------------ None Game ------ Seed ReactionActuatorMinigun Manual? 0 Play Time 00:52:30 Cumulative 32.6 hours Start 2023.06.09 @ 17:15:02 End 2023.06.09 @ 18:12:07 Sessions 1 Manual Loads 0 Difficulty Rogue Special Mode None Game No. 49 Rogue 49 Adventurer 0 Explorer 0 Win Type - Total 0 Types 0/0/0/0/0/0/0/0/0 Lore% 29 Gallery% 37 Achievement% 30 Wizard Run 0 Options --------- ASCII 0 Keyboard 0 Movement Numpad Keybinds 0 Fullscreen 1 Font 12/Smallcaps Map View 83x54 Tactical HUD 1 Map Filters NONE Filters NONE Steam 1 RUN: bff5a8f5-5ee6-4d35-88fa-ea85d02b1ccd